Cogmind - Beta 13 @@@ ROGUE MODE // 2024.04.11 @ 11:42:22 Player: A Moose Result: Destroyed by as-85649 with Assembled F-torch Performance ------------- Evolutions (0) 0 Regions Visited (2) 400 Robots Destroyed (23) 115 Value Destroyed (340) 340 Prototype IDs (0) 0 Alien Tech Used (0) 0 Bonus (0) 0 TOTAL SCORE: 855 Bonus ------- None Cogmind --------- Core Integrity 0/250 Matter 251/300 Energy 33/100 System Corruption 0% Temperature Warm (155) Movement Core (250) Ox4 Location -10/Mines Parts ------- > --- POWER (1) -------- (None) > --- PROPULSION (2) --- (None) > --- UTILITY (2) ------ Medium Storage Unit Signal Interpreter > --- WEAPON (2) ------- EM Pulse Gun EM Shotgun > --- INVENTORY (10) --- Light Ion Engine Light Treads Structural Scanner Sensor Array Power Shielding Hacking Suite Light Assault Rifle Datajack Peak State ------------ > --- POWER ------------ Ion Engine > --- PROPULSION ------- Light Treads Light Treads > --- UTILITY ---------- Medium Storage Unit Power Shielding > --- WEAPON ----------- Light Assault Rifle Light Cannon > --- INVENTORY -------- Light Ion Engine Light Treads Structural Scanner Signal Interpreter Hacking Suite EM Pulse Gun Grenade Launcher Datajack [Rating: 8] Favorites ----------- Power Ion Engine Engine Ion Engine Propulsion Light Treads Treads Light Treads Utility Medium Storage Unit Storage Medium Storage Unit Processor Signal Interpreter Protection Power Shielding Weapon Light Assault Rifle Energy Gun EM Pulse Gun Ballistic Gun Light Assault Rifle Ballistic Cannon Light Cannon Launcher Grenade Launcher Build | -11 -10 -10 ------- Run | Yrd Mat Min Slots Evolved . | . . . Power . | . . . Propulsion . | . . . Utility . | . . . Weapon . | . . . Parts Attached 14 | 6 5 3 Power 1 | 1 . . Engine 1 | 1 . . Core . | . . . Reactor . | . . . Propulsion 3 | 2 1 . Treads 3 | 2 1 . Leg . | . . . Wheel . | . . . Hover . | . . . Flight . | . . . Utility 4 | 1 3 . Device . | . . . Storage 2 | 1 1 . Processor 1 | . 1 . Hackware . | . . . Protection 1 | . 1 . Artifact . | . . . Weapon 6 | 2 1 3 Energy Gun 2 | . . 2 Energy Cannon . | . . . Ballistic Gun 2 | 2 . . Ballistic Cannon 1 | . 1 . Launcher 1 | . . 1 Special Weapon . | . . . Impact Weapon . | . . . Slashing Weapon . | . . . Piercing Weapon . | . . . Special Melee Weapon . | . . . Unidentified Prototypes . | . . . Parts Lost 5 | . . 5 Power 1 | . . 1 Propulsion 2 | . . 2 Utility . | . . . Weapon 2 | . . 2 Highest Loss Streak 5 | . . 5 To Critical Strikes . | . . . Average Slot Usage (%) 97 | . 97 80 Engine 13 | . 14 9 Treads 27 | . 28 18 Storage 14 | . 14 14 Processor 7 | . 7 14 Protection 4 | . 4 . Ballistic Gun 19 | . 19 4 Ballistic Cannon 8 | . 8 4 Naked Turns . | . . . Heaviest Build 21 | 12 20 21 Greatest Support 40 | 40 40 40 Greatest Overweight (x) 3 | 3 . . Average Overweight (x) . | . . . Largest Inventory Capacity 10 | 8 10 10 Average Capacity 9 | 7 9 10 Most Carried 10 | 5 10 10 Average Carried 6 | 2 6 9 Final Capacity 10 | 8 10 10 Final Carried 10 | 2 10 8 Class Distribution -------------------- 100% | Mutant Dominant Class ---------------- Mutant | -10/Materials Mutant | -10/Mines Resources | -11 -10 -10 ----------- Run | Yrd Mat Min Matter Collected 500 | 238 262 . Remotely . | . . . Salvage Created 633 | . 571 62 Parts 46 | . 46 . Haulers Intercepted 2 | . 2 . Recyclers Shooed 1 | . 1 . Parts Field Recycled . | . . . Retrieved Matter . | . . . Parts Self-Destructed . | . . . Prevented . | . . . Kills | -11 -10 -10 ------- Run | Yrd Mat Min Combat Hostiles Destroyed 27 | . 14 13 Guns 10 | . 10 . Cannons 5 | . 4 1 AOE 12 | . . 12 Classes Destroyed 9 | . 8 1 Worker 1 | . 1 . Builder 1 | . 1 . Hauler 2 | . 2 . Recycler 1 | . 1 . Operator 1 | . 1 . Watcher 3 | . 3 . Swarmer 9 | . 9 . Grunt 5 | . 5 . Assembled 13 | . . 13 Best Kill Streak 13 | . 12 13 Combat Bots Only 13 | . 9 13 Max Kills in Single Turn 5 | . 2 5 Gunslinging . | . . . Exploded 5 | . . 5 Melee . | . . . Uniques/NPCs Destroyed . | . . . Combat | -11 -10 -10 -------- Run | Yrd Mat Min Hostile Shots Fired 124 | . 76 48 Missed 27 | . 21 6 Damage Taken 1039 | . 464 575 Core 252 | . 68 184 Absorbed by Shields . | . . . Redirected to Shielding 7 | . 7 . Core Remaining (%) 100 | 100 . . Volleys Fired 64 | . 58 6 Largest 2 | . 2 2 Hottest 85 | . 55 85 Shots Fired 125 | . 116 9 Gun 94 | . 90 4 Cannon 27 | . 26 1 Launcher 4 | . . 4 Special . | . . . Kinetic 117 | . 116 1 Thermal . | . . . Explosive 4 | . . 4 Electromagnetic 4 | . . 4 Robot Hit Streak 11 | . 11 2 Robot Miss Streak 4 | . 4 3 Penetration Max . | . . . Secondary Targets 2 | . 2 . Max Gunslinging Chain 1 | . 1 . Shots Hit Robots 69 | . 66 3 Core Hits 64 | . 35 29 Critical Kills . | . . . Critical Parts Destroyed 1 | . 1 . Critical Strikes 2 | . 1 1 Destroy 1 | . 1 . Blast 1 | . . 1 Melee Attacks . | . . . Impact . | . . . Slashing . | . . . Piercing . | . . . Sneak Attacks . | . . . Combat Hostiles . | . . . Follow-up Attacks . | . . . Damage Inflicted 1708 | . 749 959 Guns 494 | . 468 26 Cannons 299 | . 280 19 Explosions 914 | . . 914 Melee . | . . . Ramming 1 | . 1 . Kinetic 767 | . 748 19 Thermal . | . . . Explosive 914 | . . 914 Electromagnetic 26 | . . 26 Impact . | . . . Slashing . | . . . Piercing . | . . . Highest Corruption . | . . . Average Corruption . | . . . Corruption Purged . | . . . Corruption Blocked . | . . . Overload Shots . | . . . Overflow Damage 36 | . 7 29 Projectiles 7 | . 7 . Explosions 29 | . . 29 Melee . | . . . Knockbacks 5 | . 5 . Impact . | . . . Kinetic 5 | . 5 . Secondary . | . . . Self-Inflicted Damage 19 | . . 19 Shots 1 | . . 1 Rammed 1 | . 1 . Targets Rammed 1 | . 1 . Kicked . | . . . Crushed . | . . . Highest Temperature 135 | . 34 135 Average Temperature 26 | . 12 75 Received Heat Transfer 418 | . 78 340 Siege Activations . | . . . Robots Corrupted . | . . . Combat Hostiles . | . . . Parts Fried . | . . . Impact Corruptions . | . . . Robots Melted . | . . . Combat Hostiles . | . . . Parts Melted . | . . . Heat Transferred . | . . . Parts Sabotaged . | . . . Parts Stolen . | . . . Parts Stripped . | . . . Power Chain Reactions . | . . . Alert | -11 -10 -10 ------- Run | Yrd Mat Min Peak Influence 254 | . 254 50 Initial 43 | . . 43 Average 66 | . 75 36 Maximum Alert Level 1 | . 1 . Low Security (%) 94 | 100 93 100 Level 1 5 | . 6 . Level 2 . | . . . Level 3 . | . . . Level 4 . | . . . Level 5 . | . . . High Security . | . . . Max Security . | . . . Squads Dispatched 3 | . 3 . Investigation 2 | . 2 . Extermination . | . . . Reinforcement 1 | . 1 . Assault . | . . . Garrison . | . . . Intercept . | . . . Searches Triggered . | . . . Construction Impeded . | . . . Haulers Reinforced . | . . . Active Scanning Responses . | . . . Cargo Convoy Interrupts . | . . . Stealth | -11 -10 -10 --------- Run | Yrd Mat Min Distress Signals . | . . . Communications Jammed . | . . . Distress Signals . | . . . Times Spotted 41 | . 21 20 Peak Tracking Total 20 | . 4 20 Tactical Retreats 1 | . 1 . Traps | -11 -10 -10 ------- Run | Yrd Mat Min Traps Triggered 2 | . 2 . Indirectly . | . . . Trap Hack Attempts . | . . . Triggered . | . . . Disarmed . | . . . Reprogrammed . | . . . Reused . | . . . Traps Extracted . | . . . Installed . | . . . Triggered . | . . . Machines | -11 -10 -10 ---------- Run | Yrd Mat Min Machines Disabled . | . . . Max in Single Turn . | . . . Machines Repaired . | . . . Machines Dismantled . | . . . Machines Sabotaged . | . . . Overloaded Fab Kills . | . . . Hacking | -11 -10 -10 --------- Run | Yrd Mat Min Machines Accessed 5 | . 5 . Terminals 5 | . 5 . Fabricators . | . . . Repair Stations . | . . . Recycling Units . | . . . Scanalyzers . | . . . Garrison Access . | . . . Total Hacks 12 | . 12 . Successful 3 | . 3 . Failed 9 | . 9 . Catastrophic 1 | . 1 . Database Lockouts . | . . . Manual 4 | . 4 . Terminals 12 | . 12 . Fabricators . | . . . Repair Stations . | . . . Recycling Units . | . . . Scanalyzers . | . . . Garrison Access . | . . . Terminal Hacks 3 | . 3 . Branch Access Points 1 | . 1 . Locate Traps 1 | . 1 . Zone Layout 1 | . 1 . Fabricator Hacks . | . . . Repair Station Hacks . | . . . Recycling Unit Hacks . | . . . Scanalyzer . | . . . Garrison Access Hacks . | . . . Unauthorized Hacks . | . . . Terminals . | . . . Fabricators . | . . . Repair Stations . | . . . Recycling Units . | . . . Scanalyzers . | . . . Garrison Access . | . . . Data Cores Recovered . | . . . Used . | . . . Hacking Detections 5 | . 5 . Full Trace Events . | . . . Feedback Events . | . . . Feedback Blocked . | . . . Robot Schematics Acquired . | . . . Robots Built . | . . . Authchips . | . . . Time . | . . . Total Robot Build Rating . | . . . Part Schematics Acquired . | . . . Parts Built . | . . . Authchips . | . . . Time . | . . . Total Part Build Rating . | . . . Parts Repaired . | . . . Time . | . . . Parts Recycled . | . . . Recycled Matter . | . . . Retrieved Matter . | . . . Retrieved Components . | . . . Parts Scanalyzed . | . . . Part Schematics Acquired . | . . . Parts Damaged . | . . . Bothacking | -11 -10 -10 ------------ Run | Yrd Mat Min Used RIF Installer . | . . . Robots Hacked . | . . . Non-combat . | . . . Combat . | . . . Robot Hacks Applied . | . . . Relay Couplers Released . | . . . Fabnet Peak Effective % . | . . . Robots Rewired . | . . . Allies Hacked . | . . . Hacks Repelled . | . . . Allies | -11 -10 -10 -------- Run | Yrd Mat Min Total Allies . | . . . Largest Group . | . . . Highest-Rated Group . | . . . Highest-Rated Ally . | . . . Total Orders . | . . . Ally Attacks . | . . . Total Damage . | . . . Kills . | . . . Allies Corrupted . | . . . Allies Melted . | . . . Intel | -11 -10 -10 ------- Run | Yrd Mat Min Robot Analysis Total . | . . . Derelict Logs Recovered . | . . . Drone Launches . | . . . Drone Recoveries . | . . . Exploration | -11 -10 -10 ------------- Run | Yrd Mat Min Turns Passed 1211 | 126 1054 31 Spaces Moved 613 | 72 532 9 Core 18 | 18 . . Treads 595 | 54 532 9 Legs . | . . . Wheels . | . . . Hover . | . . . Flight . | . . . Fastest Speed 50 | 50 160 160 Average Speed 159 | 157 160 160 Slowest Speed 200 | 200 160 160 Overloaded Moves . | . . . Propulsion Burnouts . | . . . Robots Hopped . | . . . Cave-ins Triggered . | . . . Exploration Rate (%) 36 | 5 95 8 Regions Visited 2 Branch Regions 1 Pre-discovered Areas . | . . . Known Exits Taken 1 | . 1 . Unknown Exits Taken 1 | 1 . . Scrap Searched 1 | . . 1 Spaces Dug . | . . . Terrain Destroyed 21 | . . 21 Melee . | . . . Projectile . | . . . AOE 21 | . . 21 Terrain Rammed . | . . . Walls Destroyed . | . . . Machines Disabled . | . . . Actions | -11 -10 -10 --------- Run | Yrd Mat Min Total 739 | 85 636 18 Wait 26 | . 26 . Move 611 | 71 531 9 Hop . | . . . Pick Up 20 | 8 12 . Fast Attach . | . . . Attach 10 | 6 2 2 Detach . | . . . Swap 4 | . 3 1 Drop 3 | . 3 . Fire 64 | . 58 6 Melee . | . . . Ram . | . . . Kick . | . . . Crush 1 | . 1 . Escape Stasis . | . . . Rewire . | . . . Trap . | . . . Miscellaneous . | . . . Route ------- -11/Scrapyard -10/Materials (discovered 4 exits: *Mat x3 / *Min) -10/Mines History --------- Turn | Location | Event 16 | -11/Scrapyard | Discovered new exit (range 16) 127 | -11/Scrapyard | Entered Materials 188 | -10/Materials | Discovered new exit (range 13) 304 | -10/Materials | Build established: Mutant 536 | -10/Materials | Destroyed 9 combat bots 592 | -10/Materials | Discovered new exit (range 16) 617 | -10/Materials | Identified exit to Materials 944 | -10/Materials | Discovered new exit (range 14) 952 | -10/Materials | Identified exit to Mines 1024 | -10/Materials | Discovered exit to Materials (range 8) 1181 | -10/Materials | Entered Mines 1182 | -10/Mines | Assembled infested the area 1187 | -10/Mines | Assisted by a Guerilla fighting off Assembled 1189 | -10/Mines | Core integrity fell below 50% 1201 | -10/Mines | Core integrity fell below 20% 1212 | -10/Mines | Destroyed by as-85649 with Assembled F-torch Last Messages --------------- as-40269 destroyed. as-66176 destroyed. as-76975 destroyed. as-94642 destroyed. Lgt. Cannon destroyed. Destroyed Asb. F-torch. Destroyed Asb. Hover Unit. as-62491 destroyed. as-24714 destroyed. Destroyed Asb. F-torch. as-20964 destroyed. as-65390 destroyed. as-82132 destroyed. as-13473 destroyed. as-95673 destroyed. Lgt. Treads destroyed. as-23153 destroyed. Grenade Launcher destroyed. Ion Engine destroyed. as-11323 destroyed. Map ----- +----------------------------------------------------+ | | | | | ???????????????????????????????????????????? | | ???????????????????????????????????????????? | | ???????????????????####????????????????????? | | ???????????????????#" ????????????????????? | | ???????????????????# ????????????????????? | | ??????????????????## ????????????????????? | | ??????????????????? ????????????????????? | | ??????????????????? ????????????????????? | | ???????????????????# #????????????????????? | | ???????????????????# #??####??????????????? | | ???????????????????# ### #??????????????? | | ???????????????????# t ??????????????? | | ???????????????????# t####???????????? | | ???????????????????# ##??????????? | | ???????????????????# #??????????? | | ???????????????????## #??????????? | | ????????????????????##a ##??????????? | | ?????????????????????# a ####???????????? | | ??????????????????????# |%##??????????????? | | ??????????????????????# aa #???????????????? | | ??????????????????????# % #???????????????? | | ??????????????????????# % #???????????????? | | ??????????????????????# % #???????????????? | | ???????????????????????# @ #???????????????? | | ???????????????????????# ##???????????????? | | ???????????????????????# #????????????????? | | ???????????????????????# #????????????????? | | ???????????????????????# #????????????????? | | ???????????????????????# #????????????????? | | ??????????????????????? #????????????????? | | ??????????????????????? #????????????????? | | ??????????????????????? # ????????????????? | | ??????????????????????# ? ????????????????? | | ?????????????????????? ? ????????????????? | | ?????????????????????? ? ????????????????? | | ?????????????????????? ? ????????????????? | | ?????????????????????? ? ????????????????? | | ????????????????????? ? ????????????????? | | ??????????????????????? ? ????????????????? | | ???????????????????????????????????????????? | | ???????????????????????????????????????????? | | ???????????????????????????????????????????? | | ???????????????????????????????????????????? | | ???????????????????????????????????????????? | | ???????????????????????????????????????????? | | ???????????????????????????????????????????? | | ???????????????????????????????????????????? | | ???????????????????????????????????????????? | +----------------------------------------------------+ Best States ------------- Heat Dissipation 25 Energy Generation 10 Energy Capacity 250 Matter Stores 300 Matter Capacity 300 Sight Range 16 Terrain Scan Density 10 Power Shielding 33 Evasion (%) 40 Recoil Reduction 2 Item Schematics ----------------- None Robot Schematics ------------------ None Fabricated ------------ Nothing Alien Tech Used ----------------- None Achievements -------------- Hunted Challenges ------------ None Game ------ Seed LobotomyDamperRipper Manual? 0 Play Time 00:11:56 Cumulative 26.3 hours Start 2024.04.11 @ 11:31:40 End 2024.04.11 @ 11:42:22 Sessions 1 Manual Loads 0 Difficulty Rogue Special Mode None Game No. 34 Rogue 25 Adventurer 9 Explorer 0 Win Type - Total 0 Types 0/0/0/0/0/0/0/0/0 Lore% 22 Gallery% 35 Achievement% 29 Wizard Run 0 Options --------- Layout 1 ASCII 0 Keyboard 0 Movement Numpad Keybinds 0 Fullscreen 1 Font 24/Smallcaps Map View 50x35 Zoom Use 0% Tactical HUD 0 Map Filters NONE Filters NONE Steam 1 RUN: aa1b712c-da40-4d4c-95d9-2fbf9e34c735